bitfinex/quotes_SOLUSD_20250903
["timestamp","ask_amount","ask_price","bid_price","bid_amount"]
[1756900308155,0.06,211.08,211.07,88.85167122]
[1756900308653,0.77,211.08,211.07,84.43776472]
[1756900308829,0.77,211.08,211.07,88.85167122]
[1756900309034,0.77,211.08,211.07,84.1139065]
[1756900310455,0.77,211.08,211.07,4.4139065]
[1756900310646,0.77,211.08,211.07,9.15167122]
[1756900311643,0.77,211.08,211.07,9.18167122]
[1756900313754,0.06,211.08,211.07,9.18167122]
[1756900315149,0.77,211.08,211.07,9.18167122]
[1756900316143,0.06,211.08,211.07,9.18167122]
[1756900317657,0.06,211.08,211.07,0.03]
[1756900317856,0.06,211.08,211.07,4.4439065]
[1756900319560,0.06,211.08,211.07,84.1439065]
[1756900320238,0.77,211.08,211.07,84.46776472]
[1756900320437,0.06,211.08,211.07,88.88167122]
[1756900320654,0.06,211.08,211.07,84.46776472]
[1756900320845,0.77,211.08,211.07,88.88167122]
[1756900321044,0.06,211.08,211.07,88.88167122]
[1756900323644,0.77,211.08,211.07,84.1439065]
[1756900324162,0.77,211.08,211.07,79.73]
[1756900324860,0.77,211.08,211.07,0.03]
[1756900326455,5.50754026,211.08,211.07,0.03]
[1756900327663,0.77,211.08,211.07,0.03]
[1756900330266,5.50754026,211.08,211.07,0.03]
[1756900332387,23.51704077,211.08,211.07,0.03]
[1756900332745,27.96094727,211.08,211.07,0.03]
[1756900334468,23.51704077,211.08,211.07,0.03]
[1756900335379,25.4166015,211.08,211.07,0.03]
[1756900337080,23.51704077,211.08,211.07,0.03]
[1756900340659,25.41669171,211.08,211.07,0.03]
[1756900341566,29.83059821,211.08,211.07,0.03]
[1756900341983,25.41669171,211.08,211.07,0.03]
[1756900342179,21.00278521,211.08,211.07,0.03]
[1756900342373,25.41669171,211.08,211.07,0.03]
[1756900343091,23.51704077,211.08,211.07,0.03]
[1756900343300,18.77950051,211.08,211.07,0.03]
[1756900343607,14.36559401,211.08,211.07,0.03]
[1756900343976,0.06,211.08,211.07,0.03]
[1756900344694,0.74,211.08,211.07,0.03]
[1756900345595,5.47754026,211.08,211.07,0.03]
[1756900345780,8.30301989,211.08,211.07,0.03]
[1756900346597,21.8986139,211.08,211.07,0.03]
[1756900349103,23.79826484,211.08,211.07,0.03]
[1756900349780,21.8986139,211.08,211.07,0.03]
[1756900351281,23.79826484,211.08,211.07,0.03]
[1756900356384,27.34130816,211.08,211.07,0.03]
[1756900358813,24.51582853,211.08,211.07,0.03]
[1756900359124,27.34106273,211.08,211.07,0.03]
[1756900359495,23.79826484,211.08,211.07,0.03]
[1756900378035,20.97278521,211.08,211.07,0.03]
[1756900378239,23.79826484,211.08,211.07,0.03]
[1756900381256,18.38072458,211.08,211.07,0.03]
[1756900381458,0.06,211.08,211.07,0.03]
[1756900382132,4.79754026,211.08,211.07,0.03]
[1756900382332,7.62301989,211.08,211.07,0.03]
[1756900383027,4.79754026,211.08,211.07,0.03]
[1756900383335,21.9086139,211.08,211.07,0.03]
[1756900383540,24.73409353,211.08,211.07,0.03]
[1756900389851,31.5403165,211.08,211.07,0.03]
[1756900391229,27.55957316,211.08,211.07,0.03]
[1756900396252,31.55679978,211.08,211.07,0.03]
[1756900396460,36.73692702,211.08,211.07,0.03]
[1756900397263,32.7397004,211.08,211.07,0.03]
[1756900397753,39.59559401,211.04,211.0,0.03]
[1756900398057,13.59559401,210.99,210.95,0.1]
[1756900398258,21.82426785,210.99,210.95,0.1]
[1756900398445,44.99878822,210.98,210.97,1e-08]
[1756900398851,49.23778038,210.98,210.97,1e-08]
[1756900399165,59.25097959,210.98,210.97,1e-08]
[1756900399342,53.96426517,210.98,210.97,1e-08]
[1756900399756,50.41527301,210.98,210.97,1e-08]
[1756900399938,55.15505877,210.98,210.97,1e-08]
[1756900400136,52.32957914,210.98,210.97,1e-08]
[1756900400448,13.59559401,210.97,210.95,1e-08]
[1756900400755,31.70682018,210.96,210.95,1e-08]
[1756900400938,32.39682018,210.96,210.95,1e-08]
[1756900401138,34.29791568,210.96,210.95,1e-08]
[1756900401338,35.71728187,210.96,210.95,1e-08]
[1756900401948,40.45751698,210.96,210.95,1e-08]
[1756900402463,44.43417831,210.96,210.95,1e-08]
[1756900402765,40.45751698,210.96,210.95,1e-08]
[1756900403140,44.43417493,210.96,210.95,1e-08]
[1756900403363,40.45751698,210.96,210.95,1e-08]
[1756900405477,35.17675619,210.96,210.95,1e-08]
[1756900406054,26.33011883,210.96,210.95,1e-08]
[1756900406368,35.17675619,210.96,210.95,1e-08]
[1756900408344,39.65704758,210.96,210.95,1e-08]
[1756900412353,39.59559401,210.92,210.87,0.21]
[1756900412555,18.01891269,210.88,210.87,0.21]
[1756900412750,18.01891269,210.88,210.85,0.1]
[1756900412944,22.44223137,210.88,210.85,0.1]
[1756900413270,18.01891269,210.88,210.85,0.1]
[1756900413571,14.26024956,210.87,210.86,0.21]
[1756900413771,18.68356824,210.87,210.85,0.1]
[1756900414144,13.59559401,210.88,210.85,0.1]
[1756900414145,44.33807717,210.86,210.85,0.1]
[1756900414351,63.02300123,210.86,210.85,0.31]
[1756900415667,53.85719939,210.86,210.85,0.31]
[1756900415966,40.26160538,210.86,210.85,0.31]
[1756900416171,26.0,210.86,210.85,0.31]
[1756900417551,30.7733638,210.86,210.85,0.31]
[1756900418270,26.0,210.86,210.85,0.31]
[1756900418955,30.7733638,210.86,210.85,0.31]
[1756900420259,30.7733638,210.86,210.85,0.1]
[1756900420495,30.7733638,210.86,210.85,0.31]
[1756900422975,30.7733638,210.86,210.85,0.1]
[1756900423277,35.51584696,210.86,210.85,0.1]
[1756900424461,30.7733638,210.86,210.85,0.1]
[1756900425265,30.7733638,210.86,210.85,0.31]
[1756900426284,30.7733638,210.86,210.85,0.1]
[1756900426581,4.42331868,210.91,210.85,9.47602676]
[1756900426759,4.42331868,210.91,210.86,0.21]
[1756900426760,26.0,210.89,210.86,0.21]
[1756900427166,26.0,210.89,210.87,0.21]
[1756900427869,4.77330385,210.9,210.88,4.63331868]
[1756900428088,9.16378688,210.95,210.89,4.63331868]
[1756900428277,4.77330385,210.94,210.89,4.63331868]
[1756900428469,26.0,210.92,210.89,4.63331868]
[1756900429888,26.0,210.92,210.89,4.42331868]
[1756900430187,0.69,210.94,210.89,4.63331868]
[1756900430687,5.43081071,210.94,210.89,4.63331868]
[1756900431066,5.43081071,210.94,210.89,0.21]
[1756900431385,5.43081071,210.94,210.89,4.63331868]
[1756900431876,0.69,210.94,210.9,4.42331868]
[1756900433771,5.43076285,210.94,210.9,4.42331868]
[1756900435069,0.06,210.95,210.9,4.42331868]
[1756900435273,0.06,210.95,210.89,4.77179305]
[1756900435505,0.75,210.95,210.9,4.63331868]
[1756900436363,0.69,210.94,210.89,0.03]
[1756900436573,0.69,210.94,210.89,4.45331868]
[1756900436887,0.69,210.94,210.89,4.66331868]
[1756900437389,5.43080849,210.94,210.89,4.66331868]
[1756900439194,5.43091422,210.93,210.89,0.24]
[1756900439388,5.43091422,210.93,210.89,4.66331868]
[1756900440572,0.69,210.93,210.89,4.66331868]
[1756900440890,5.430939,210.93,210.89,4.45331868]
[1756900441274,5.430939,210.93,210.89,0.03]
[1756900441481,5.430939,210.93,210.89,4.45331868]
[1756900442594,0.69,210.93,210.89,4.45331868]
[1756900443396,4.74074517,210.94,210.89,0.03]
[1756900443696,4.74074517,210.94,210.89,4.45331868]
[1756900443697,0.69,210.93,210.89,4.45331868]
[1756900443990,0.69,210.92,210.89,4.45331868]
[1756900444693,0.69,210.93,210.89,4.45331868]
[1756900444893,0.69,210.93,210.89,0.03]
[1756900445091,0.69,210.92,210.89,0.03]
[1756900445474,5.43120576,210.92,210.89,0.03]
[1756900445796,0.06,210.95,210.89,4.45331868]
[1756900445977,0.69,210.94,210.9,4.42331868]
[1756900446290,44.39610913,210.95,210.91,4.42331868]
[1756900446291,0.06,210.95,210.91,4.42331868]
[1756900446490,0.75,210.95,210.91,4.42331868]
[1756900446670,0.69,210.94,210.91,4.42331868]
[1756900446870,0.69,210.93,210.9,4.42331868]
[1756900447072,0.69,210.93,210.89,0.03]
[1756900447277,0.69,210.93,210.89,4.45331868]
[1756900447491,0.69,210.92,210.89,4.45331868]
[1756900447800,0.69,210.92,210.89,0.03]
[1756900447979,0.69,210.92,210.89,4.45331868]
[1756900448179,26.69,210.94,210.89,4.45331868]
[1756900448391,0.69,210.93,210.89,4.45331868]
[1756900450110,5.43096904,210.93,210.89,4.45331868]
[1756900450534,0.69,210.93,210.89,4.45331868]
[1756900450802,0.69,210.93,210.9,4.42331868]
[1756900450975,26.0,210.94,210.9,4.42331868]
[1756900451174,0.75,210.95,210.9,4.42331868]
[1756900451382,0.69,210.94,210.9,4.42331868]
[1756900451706,0.68,210.93,210.9,4.42331868]
[1756900451910,0.68,210.92,210.89,4.45331868]
[1756900452415,0.68,210.93,210.89,4.45331868]
[1756900452781,0.68,210.93,210.9,4.42331868]
[1756900454497,0.06,210.95,210.92,4.42331868]
[1756900454686,0.06,210.95,210.93,4.42331868]
[1756900455091,0.06,210.95,210.94,4.42331868]
[1756900455691,0.06,210.95,210.93,4.42331868]
[1756900455888,0.06,210.95,210.94,4.42331868]
[1756900457012,0.06,210.95,210.94,9.37400323]
[1756900459489,0.06,210.95,210.94,4.63331868]
[1756900459696,0.06,210.95,210.94,4.42331868]
[1756900459884,0.06,210.95,210.9,105.7]
[1756900460086,0.74,210.95,210.93,4.42331868]
[1756900460290,0.68,210.94,210.92,4.42331868]
[1756900460489,0.06,210.95,210.92,4.42331868]
[1756900460706,0.06,210.95,210.94,4.42331868]
[1756900461106,0.06,210.95,210.93,4.42331868]
[1756900461293,0.06,210.95,210.91,4.74125125]
[1756900461497,0.06,210.95,210.92,4.42331868]
[1756900461919,0.06,210.95,210.93,4.42331868]
[1756900464494,0.06,210.95,210.94,4.42331868]
[1756900466203,0.06,210.95,210.94,9.16400323]
[1756900466600,0.06,210.95,210.94,9.37400323]
[1756900467206,0.06,210.95,210.94,9.16400323]
[1756900467717,0.06,210.95,210.93,2.82728228]
[1756900467901,0.74,210.95,210.93,2.82728228]
[1756900468102,0.06,210.95,210.92,79.7]
[1756900468312,0.68,210.94,210.92,82.52728228]
[1756900468525,0.06,210.95,210.92,82.52728228]
[1756900468817,0.68,210.94,210.92,82.52728228]
[1756900469423,0.06,210.95,210.92,79.7]
[1756900469424,0.68,210.93,210.92,79.7]
[1756900469613,0.68,210.93,210.92,82.52728228]
[1756900469802,0.68,210.94,210.92,82.52728228]
[1756900470305,0.06,210.95,210.91,0.03]
[1756900470504,0.68,210.93,210.91,0.03]
[1756900470700,0.06,210.95,210.91,0.03]
[1756900470701,0.68,210.92,210.91,0.03]
[1756900472717,3.50728228,210.92,210.91,0.03]
[1756900473411,8.24841635,210.92,210.91,0.03]
[1756900474324,5.42113407,210.92,210.91,0.03]
[1756900475725,0.68,210.92,210.91,0.03]
[1756900476614,5.42113407,210.92,210.91,0.03]
[1756900478130,0.68,210.92,210.91,0.03]
[1756900478316,0.74,210.95,210.91,0.03]
[1756900478511,0.68,210.94,210.91,0.03]
[1756900479928,0.68,210.93,210.91,0.03]
[1756900482134,7.62774668,210.95,210.91,0.03]
[1756900482325,0.66,210.92,210.91,0.03]
[1756900482637,3.48728228,210.92,210.91,0.03]
[1756900482933,29.48728228,210.92,210.91,0.03]
[1756900484032,26.66,210.92,210.91,0.03]
[1756900485435,31.40113407,210.92,210.91,0.03]
[1756900486428,34.22841635,210.92,210.91,0.03]
[1756900490434,26.66,210.92,210.91,0.03]
[1756900490637,1.90091481,210.94,210.91,2.85728228]
[1756900490816,0.06,210.95,210.91,3.06728228]
[1756900491218,0.72,210.95,210.91,2.85728228]
[1756900491739,0.66,210.94,210.91,0.03]
[1756900494241,0.66,210.93,210.91,0.03]
[1756900497219,0.72,210.95,210.91,0.03]
[1756900497422,0.66,210.94,210.91,2.85728228]
[1756900497735,0.66,210.93,210.91,2.85728228]
[1756900498326,0.66,210.93,210.91,0.03]
[1756900498524,0.72,210.95,210.91,0.03]
[1756900498726,0.66,210.94,210.91,0.03]
[1756900499251,0.66,210.93,210.91,0.03]
[1756900499547,0.66,210.92,210.91,0.03]
[1756900502243,5.40113407,210.92,210.91,0.03]
[1756900506440,8.22841635,210.92,210.91,0.03]
[1756900506653,5.40113407,210.92,210.91,0.03]
[1756900515357,21.82401036,210.92,210.91,0.03]
[1756900516153,18.99672808,210.92,210.91,0.03]
[1756900516358,21.82401036,210.92,210.91,0.03]
[1756900517866,14.25559401,210.92,210.91,0.03]
[1756900518348,18.99672808,210.92,210.91,0.03]
[1756900519458,5.40113407,210.92,210.91,0.03]
[1756900519654,30.7409224,210.93,210.91,0.03]
[1756900520144,31.4109224,210.93,210.91,0.03]
[1756900520659,0.67,210.92,210.91,0.03]
[1756900522842,13.59559401,210.93,210.91,0.03]
[1756900523542,14.26559401,210.93,210.91,0.03]
[1756900524258,0.67,210.92,210.91,0.03]
[1756900527949,3.49728228,210.92,210.91,0.03]
[1756900529167,19.00672808,210.92,210.91,0.03]
[1756900529669,27.42226585,210.92,210.91,0.03]
[1756900529851,39.59559401,210.9,210.89,0.03]
[1756900530059,48.01747402,210.9,210.89,0.03]
[1756900530261,44.68892202,210.9,210.89,0.03]
[1756900530651,46.59019826,210.9,210.89,0.03]
[1756900531350,51.33178194,210.9,210.89,0.03]
[1756900534468,42.16687025,210.9,210.89,0.03]
[1756900534670,13.59559401,210.9,210.89,0.03]
[1756900534856,18.68892202,210.9,210.89,0.03]
[1756900535045,23.4305057,210.9,210.89,0.03]
[1756900535367,5.09332801,210.9,210.89,0.03]
[1756900535672,18.01892202,210.91,210.89,0.03]
[1756900536782,0.67,210.91,210.89,0.03]
[1756900537855,1.90100516,210.93,210.89,0.03]
[1756900538060,13.65559401,210.95,210.9,4.66332801]
[1756900538268,0.73,210.95,210.9,4.66332801]
[1756900538562,0.06,210.95,210.92,4.42332801]
[1756900538766,0.06,210.95,210.91,0.24]
[1756900538767,0.06,210.95,210.93,4.42332801]
[1756900538968,0.06,210.95,210.92,4.42332801]
[1756900539360,0.06,210.95,210.91,4.66332801]
[1756900540584,0.73,210.95,210.91,4.42332801]
[1756900541369,0.67,210.94,210.89,4.45332801]
[1756900541671,0.67,210.94,210.89,4.69332801]
[1756900542653,0.67,210.94,210.89,0.27]
[1756900544377,0.67,210.94,210.89,4.69332801]
[1756900544670,30.80054227,210.95,210.9,4.66332801]
[1756900544883,31.48054227,210.95,210.9,4.66332801]
[1756900545452,0.68,210.94,210.9,4.42332801]
[1756900546252,30.80054227,210.95,210.9,4.42332801]
[1756900546563,0.68,210.94,210.9,4.66332801]
[1756900546753,0.68,210.94,210.9,4.42332801]
[1756900548568,0.68,210.93,210.9,4.42332801]
[1756900549272,0.68,210.93,210.89,9.15027484]
[1756900550272,26.06,210.95,210.91,4.42332801]
[1756900550579,26.06,210.95,210.91,4.66332801]
[1756900550772,26.06,210.95,210.92,4.42332801]
[1756900551270,26.74,210.95,210.91,4.42332801]
[1756900551468,0.68,210.94,210.89,4.72694683]
[1756900551663,0.68,210.93,210.89,9.15027484]
[1756900552563,0.68,210.93,210.9,4.42332801]
[1756900554574,30.8004753,210.95,210.9,4.42332801]
[1756900554873,0.68,210.93,210.9,4.42332801]
[1756900555178,30.8004753,210.95,210.89,9.15027484]
[1756900555377,0.68,210.93,210.89,9.15027484]
[1756900555980,0.68,210.93,210.89,4.72694683]
[1756900556193,0.68,210.93,210.89,9.15027484]
[1756900556987,30.8004753,210.95,210.89,9.15027484]
[1756900557282,0.68,210.92,210.89,9.15027484]
[1756900558489,4.74091822,210.93,210.89,0.03]
[1756900558670,4.42332801,210.9,210.86,0.03]
[1756900558871,13.59559401,210.86,210.84,0.03]
[1756900559172,30.85844079,210.85,210.84,0.03]
[1756900559512,33.35034983,210.85,210.84,0.03]
[1756900559787,37.77367784,210.85,210.84,0.03]
[1756900560158,13.59559401,210.83,210.82,0.03]
[1756900560360,26.96517547,210.83,210.82,0.03]
[1756900560687,29.74999415,210.83,210.82,0.03]
[1756900561280,13.59559401,210.78,210.75,3.5330184]
[1756900561475,4.42332801,210.76,210.71,0.67]
[1756900561795,4.42332801,210.72,210.71,0.67]
[1756900562084,4.42332801,210.72,210.71,4.20025129]
[1756900562265,4.42332801,210.72,210.71,0.67]
[1756900565780,3.53005604,210.75,210.71,5.41581213]
[1756900565983,4.42332801,210.76,210.72,0.67]
[1756900566182,7.9535793,210.76,210.72,0.67]
[1756900566393,4.42332801,210.8,210.74,4.42332801]
[1756900566575,4.42332801,210.8,210.75,0.67]
[1756900567169,38.37690731,210.81,210.75,5.09332801]
[1756900567470,26.0,210.81,210.76,5.09332801]
[1756900567772,26.0,210.81,210.77,0.67]
[1756900567972,26.0,210.81,210.75,4.42332801]
[1756900568166,26.0,210.81,210.78,0.67]
[1756900568366,14.26005409,210.82,210.72,3.53025129]
[1756900568367,4.42332801,210.82,210.72,3.53025129]
[1756900568583,4.42332801,210.8,210.75,0.67]
[1756900568883,4.42332801,210.82,210.75,5.09332801]
[1756900569080,4.42332801,210.82,210.76,0.67]
[1756900569786,4.42332801,210.8,210.75,0.67]
[1756900570169,4.42332801,210.8,210.76,0.67]
[1756900570372,4.42332801,210.8,210.74,0.67]
[1756900571181,4.48332801,210.82,210.76,4.42332801]
[1756900571385,9.22675561,210.82,210.77,0.67]
[1756900571582,9.22675561,210.82,210.78,0.67]
[1756900571583,4.48332801,210.82,210.78,0.67]
[1756900571783,4.48332801,210.82,210.76,4.42332801]
[1756900571784,4.48332801,210.82,210.79,0.67]
[1756900571995,0.06,210.82,210.79,0.67]
[1756900572195,4.48332801,210.82,210.79,0.67]
[1756900573797,0.06,210.82,210.8,5.09332801]
[1756900573982,0.06,210.82,210.81,0.67]
[1756900574490,0.06,210.82,210.79,4.42332801]
[1756900574491,0.06,210.82,210.79,5.09332801]
[1756900574687,0.06,210.82,210.8,0.67]
[1756900574877,0.06,210.82,210.8,5.09332801]
[1756900575288,0.06,210.82,210.81,0.67]
[1756900576693,0.06,210.82,210.81,9.83693599]
[1756900576992,0.06,210.82,210.81,5.09332801]
[1756900577590,0.06,210.82,210.8,84.12332801]
[1756900577897,0.06,210.82,210.81,4.42332801]
[1756900578196,0.06,210.82,210.81,5.09332801]
[1756900578489,0.06,210.82,210.81,9.83693599]
[1756900578699,0.06,210.85,210.81,93.05689651]
[1756900578874,0.06,210.85,210.84,4.42332801]
[1756900579068,0.06,210.85,210.84,84.12332801]
[1756900579269,0.06,210.85,210.84,84.79332801]
[1756900580072,0.06,210.85,210.84,89.53626103]
[1756900580271,0.06,210.85,210.84,84.79332801]
[1756900580887,0.06,210.85,210.84,89.53626103]
[1756900585707,0.06,210.85,210.84,84.79332801]
[1756900585882,0.06,210.85,210.84,80.37]
[1756900586381,0.06,210.85,210.84,79.7]
[1756900586784,0.06,210.85,210.84,80.37]
[1756900587074,0.06,210.85,210.84,79.7]
[1756900587274,4.48332801,210.85,210.84,79.7]
[1756900587490,5.13332801,210.85,210.84,79.7]
[1756900587895,5.13332801,210.85,210.78,9.83759565]
[1756900588087,4.42332801,210.84,210.78,9.83759565]
[1756900588281,4.42332801,210.84,210.78,9.16759565]
[1756900588483,4.48332801,210.85,210.79,0.67]
[1756900588695,4.48332801,210.85,210.81,0.03]
[1756900588997,5.07332801,210.84,210.81,0.03]
[1756900589378,0.65,210.83,210.81,0.03]
[1756900589697,4.42332801,210.82,210.81,0.03]
[1756900590290,5.07332801,210.83,210.81,0.03]
[1756900591282,4.42332801,210.84,210.81,0.03]
[1756900591485,2.83230639,210.83,210.81,0.03]
[1756900592387,0.06,210.85,210.82,3.50230639]
[1756900592586,0.06,210.85,210.83,3.50230639]
[1756900592790,0.06,210.85,210.81,0.7]
[1756900592992,0.06,210.85,210.82,3.50230639]
[1756900593184,0.06,210.85,210.83,0.67]
[1756900594781,0.06,210.85,210.81,0.7]
[1756900594982,2.89230639,210.85,210.81,0.03]
[1756900595204,2.83230639,210.84,210.81,0.03]
[1756900595502,3.48230639,210.84,210.81,0.03]
[1756900596093,0.65,210.84,210.81,0.03]
[1756900596294,3.48230639,210.84,210.81,0.03]
[1756900598104,2.83230639,210.84,210.81,0.03]
[1756900598310,2.89230639,210.85,210.81,0.03]
[1756900599004,3.54230639,210.85,210.81,0.03]
[1756900600411,8.28504935,210.85,210.81,0.03]
[1756900601215,2.83230639,210.83,210.81,0.03]
[1756900603503,2.83230639,210.84,210.82,0.68]
[1756900603701,2.83230639,210.84,210.81,0.03]
[1756900605410,3.48230639,210.84,210.81,0.03]
[1756900606495,3.48230639,210.84,210.81,3.56400583]
[1756900607014,2.83230639,210.84,210.81,3.56400583]
[1756900607208,2.83230639,210.84,210.81,0.03]
[1756900607404,2.83230639,210.84,210.81,3.5647313]
[1756900608010,2.83230639,210.84,210.81,0.03]
[1756900608213,2.83230639,210.83,210.81,3.5647313]
[1756900608411,2.83230639,210.83,210.81,0.03]
[1756900608604,3.48230639,210.84,210.81,0.03]
[1756900608808,2.83230639,210.82,210.81,0.03]
[1756900609003,3.48230639,210.82,210.81,0.03]
[1756900609316,8.22568937,210.82,210.81,0.03]
[1756900612518,7.57568937,210.82,210.81,0.03]
[1756900613405,8.22568937,210.82,210.81,0.03]
[1756900613718,7.57568937,210.82,210.81,0.03]
[1756900613910,8.22568937,210.82,210.81,0.03]
[1756900614620,7.57568937,210.82,210.81,0.03]
[1756900614812,2.83230639,210.82,210.81,0.03]
[1756900616911,7.57568937,210.82,210.81,0.03]
[1756900617526,8.22568937,210.82,210.81,0.03]
[1756900618621,1.96181861,210.85,210.81,0.71]
[1756900618813,2.89230639,210.85,210.82,0.68]
[1756900619019,0.06,210.85,210.82,0.68]
[1756900619403,2.83230639,210.83,210.81,0.03]
[1756900619607,2.83230639,210.84,210.81,0.03]
[1756900619806,5.72461278,210.85,210.82,0.68]
[1756900620223,5.72461278,210.85,210.81,0.03]
[1756900620407,2.89230639,210.85,210.82,0.68]
[1756900620602,2.83230639,210.84,210.82,0.68]
[1756900621329,2.83230639,210.84,210.81,0.03]
[1756900621630,2.83230639,210.84,210.82,0.68]
[1756900622018,0.06,210.85,210.82,0.68]
[1756900622205,2.89230639,210.85,210.82,0.68]
[1756900622616,7.63510121,210.85,210.82,0.68]
[1756900623130,2.83230639,210.84,210.82,0.68]
[1756900623928,2.83230639,210.84,210.81,0.03]
[1756900624120,2.83230639,210.84,210.82,0.68]
[1756900624514,0.06,210.85,210.83,0.68]
[1756900625730,0.06,210.85,210.81,2.86230639]
[1756900625936,0.06,210.85,210.84,3.51230639]
[1756900627128,0.06,210.85,210.84,0.68]
[1756900627824,0.06,210.85,210.84,8.25523941]
[1756900629427,0.06,210.85,210.84,3.51230639]
[1756900630023,0.06,210.85,210.84,0.68]
[1756900631930,0.06,210.85,210.84,8.25523941]
[1756900633038,0.06,210.85,210.84,3.51230639]
[1756900634534,0.06,210.85,210.84,0.68]
[1756900635033,0.06,210.85,210.84,0.67]
[1756900635217,0.06,210.85,210.82,7.6056479]
[1756900635423,0.06,210.85,210.83,0.67]
[1756900636628,0.06,210.85,210.82,0.03]
[1756900637036,0.06,210.85,210.82,79.73]
[1756900637423,0.06,210.85,210.83,0.67]
[1756900637935,0.06,210.85,210.82,79.73]
[1756900638641,0.06,210.85,210.82,80.4]
[1756900639542,0.06,210.85,210.83,0.67]
[1756900640742,0.06,210.85,210.82,79.73]
[1756900640939,0.06,210.85,210.82,80.4]
[1756900641444,0.06,210.85,210.83,0.67]
[1756900641740,0.06,210.85,210.82,79.73]
[1756900642423,2.89230639,210.85,210.82,0.03]
[1756900642624,3.54230639,210.85,210.82,0.03]
[1756900643441,4.74293302,210.84,210.82,0.03]
[1756900643621,7.57523941,210.84,210.82,0.03]
[1756900645547,2.83230639,210.84,210.82,0.03]
[1756900645741,0.06,210.85,210.83,0.67]
[1756900647454,0.06,210.85,210.84,0.67]
[1756900648055,0.06,210.85,210.84,3.50230639]
[1756900648553,0.06,210.85,210.84,29.50230639]
[1756900649129,12.06,210.85,210.84,29.50230639]
[1756900649430,12.06,210.85,210.84,31.41293302]
[1756900649629,12.06,210.85,210.84,34.24523941]
[1756900651222,12.06,210.85,210.84,110.7775458]
[1756900651428,0.06,210.87,210.86,30.74248316]
[1756900651627,0.06,210.87,210.86,35.16156913]
[1756900651823,0.06,210.87,210.86,35.83156913]
[1756900653157,0.06,210.87,210.86,37.73203236]
[1756900653743,1e-08,210.87,210.86,37.73203236]
[1756900654142,0.06,210.9,210.87,13.59559401]
[1756900654355,0.06,210.9,210.89,30.41908597]
[1756900654540,0.06,210.9,210.89,4.41908597]
[1756900654738,0.06,210.9,210.89,31.08908597]
[1756900654945,0.06,210.9,210.89,35.83089449]
[1756900657554,0.06,210.9,210.89,49.4264885]
[1756900657753,0.06,210.95,210.93,26.0]
[1756900657955,0.06,210.95,210.93,105.64]
[1756900658137,0.06,210.95,210.94,0.67]
[1756900659040,0.06,210.95,210.94,9.82977052]
[1756900660038,0.06,210.95,210.94,5.41068455]
[1756900660245,0.06,210.95,210.94,9.82977052]
[1756900662343,0.06,210.95,210.94,4.41908597]
[1756900663138,0.06,210.95,210.94,9.15977052]
[1756900663567,0.06,210.95,210.94,9.84977052]
[1756900663761,0.06,210.95,210.94,89.48977052]
[1756900665583,0.06,210.95,210.94,88.79977052]
[1756900665749,0.06,210.95,210.94,9.15977052]
[1756900667969,0.06,210.95,210.93,79.64]
[1756900669547,0.06,210.95,210.93,4.41908597]
[1756900670746,0.06,210.95,210.94,4.41908597]
[1756900671372,0.06,210.95,210.92,85.07096425]
[1756900671572,0.06,210.95,210.94,4.41908597]
[1756900671776,0.65,210.94,210.92,79.64]